Workbook

Sheet A4打印凭证 (hidden)
A2: 记账凭证
A3: = = = = = = = = = = = = = = = = = = = = = = = = = = =
A4: 2016-09-30
A5: 核算单位：晋江育盛木业有限公司 | D5: 凭证号：0001
A6: 摘 要 | B6: 会计科目 | C6: 借 方 金 额 | D6: 贷 方 金 额
A12: 附单据数 张
A13: 记账： | B13: 张三 | C13: 复核： | D13: 李四
A17: 记账凭证
A18: = = = = = = = = = = = = = = = = = = = = = = = = = = =
A19: 2016-09-30
A20: 核算单位：江西利安建设工程有限公司 | D20: 凭证号：0001
A21: 摘 要 | B21: 会计科目 | C21: 借 方 金 额 | D21: 贷 方 金 额
A27: 附单据数 张
A28: 记账： | B28: 胡丽丽 | C28: 复核： | D28: 胡丽丽

Sheet 明细账
A1: 库存现金明细账
A2: 期间:2017-12-1~2017-12-31
A3: 会计科目:a1001-库存现金 | H3: 单位：元
A4: 2018年 | C4: 凭证序号 | D4: 摘要 | E4: 借方 | F4: 贷方 | G4: 方 向 | H4: 余额
A5: 月 | B5: 日
D6: 上期结转 | G6: 借 | H6: 17301
A7: 12 | B7: 23 | C7: PZ171223001 | F7: 795.1 | G7: 借 | H7: 16505.9
A8: 12 | B8: 23 | C8: PZ171223003 | F8: 8400 | G8: 借 | H8: 8105.9
A9: 12 | B9: 23 | C9: PZ171223004 | D9: 往来款 | E9: 50000 | G9: 借 | H9: 58105.9
A10: 12 | D10: 本月合计 | E10: 50000 | F10: 9195.1 | G10: 借 | H10: 58105.9
A11: 12 | D11: 本年累计 | E11: 50000 | F11: 9195.1 | G11: 借 | H11: 58105.9

Sheet 科目汇总表
B1: 科 目 余 额 表
A4: 核算单位：晋江育盛木业有限公司 | G4: 期间：2017-12-01 至 2017-12-31
A5: 科目代码 | B5: 科目名称 | C5: 方向 | D5: 上期余额 | E5: 本期发生额 | G5: 期末余额 | H5: 累计 | J5: 现金流累计 | L5: 现金流本月
E6: 借 方 | F6: 贷 方 | H6: 借 方 | I6: 贷 方 | J6: 借 方 | K6: 贷 方 | L6: 借 方 | M6: 贷 方
A7: a1001 | B7: 库存现金 | C7: 借 | D7: 17301 | E7: 50000 | F7: 9195.1 | G7: 58105.9 | H7: 50000 | I7: 9195.1
A8: a1002 | B8: 银行存款 | C8: 借 | D8: 527.51 | E8: 0.46 | F8: 0 | G8: 527.97 | H8: 0.46 | I8: 0
A9: a1015 | B9: 其他货币资金 | C9: 借 | D9: 0 | G9: 0
A10: a101501 | B10: 其他货币资金--外埠存款 | C10: 借 | D10: 0 | G10: 0
A11: a101502 | B11: 其他货币资金--银行本票存款 | C11: 借 | D11: 0 | G11: 0
A12: a101503 | B12: 其他货币资金--银行汇票存款 | C12: 借 | D12: 0 | G12: 0
A13: a101504 | B13: 其他货币资金--信用卡存款 | C13: 借 | D13: 0 | G13: 0
A14: a101505 | B14: 其他货币资金--信用保证金存款 | C14: 借 | D14: 0 | G14: 0
A15: a101506 | B15: 其他货币资金--存出投资款 | C15: 借 | D15: 0 | G15: 0
A16: a1101 | B16: 交易性金融资产 | C16: 借 | D16: 0 | G16: 0
A17: a110101 | B17: 交易性金融资产--本金 | C17: 借 | D17: 0 | G17: 0
A18: a110102 | B18: 交易性金融资产--公允价值变动 | C18: 借 | D18: 0 | G18: 0
A19: a1121 | B19: 应收票据 | C19: 借 | D19: 0 | G19: 0
A20: a1122 | B20: 应收账款 | C20: 借 | D20: 0 | G20: 0
A21: a112201 | B21: 应收账款--xxx1 | C21: 借 | D21: 0 | G21: 0
A22: a112202 | B22: 应收账款--xxx2 | C22: 借 | D22: 0 | G22: 0
A23: a112203 | B23: 应收账款--xxx3 | C23: 借 | D23: 0 | G23: 0
A24: a1123 | B24: 预付账款 | C24: 借 | D24: 0 | G24: 0
A25: a1131 | B25: 应收股利 | C25: 借 | D25: 0 | G25: 0
A26: a1132 | B26: 应收利息 | C26: 借 | D26: 0 | G26: 0
A27: a1231 | B27: 其他应收款 | C27: 借 | D27: 70000 | E27: 0 | F27: 50000 | G27: 20000 | H27: 0 | I27: 50000 | J27: 0 | K27: 50000 | L27: 0 | M27: 50000
A28: a1401 | B28: 材料采购 | C28: 借 | D28: 0 | G28: 0
A29: a1402 | B29: 在途物资 | C29: 借 | D29: 0 | G29: 0
A30: a1403 | B30: 原材料 | C30: 借 | D30: 0 | G30: 0
A31: a1404 | B31: 材料成本差异 | C31: 借 | D31: 0 | G31: 0
A32: a1406 | B32: 库存商品 | C32: 借 | D32: 0 | G32: 0
A33: a140601 | B33: 库存商品--a商品 | C33: 借 | D33: 0 | G33: 0
A34: a140602 | B34: 库存商品--b商品 | C34: 借 | D34: 0 | G34: 0
A35: a140603 | B35: 库存商品--c商品 | C35: 借 | D35: 0 | G35: 0
A36: a140604 | B36: 库存商品--d商品 | C36: 借 | D36: 0 | G36: 0
A37: a140605 | B37: 库存商品--e商品 | C37: 借 | D37: 0 | G37: 0
A38: a1410 | B38: 商品进销差价 | C38: 贷 | D38: 0 | G38: 0
A39: a1411 | B39: 委托加工物资 | C39: 借 | D39: 0 | G39: 0
A40: a1431 | B40: 周转材料建造 | C40: 借 | D40: 0 | G40: 0
A41: a1531 | B41: 长期应收款 | C41: 借 | D41: 0 | G41: 0
A42: a1541 | B42: 未实现融资收益 | C42: 借 | D42: 0 | G42: 0
A43: a1601 | B43: 固定资产 | C43: 借 | D43: 0 | G43: 0
A44: a1602 | B44: 累计折旧 | C44: 贷 | D44: 0 | G44: 0
A45: a1603 | B45: 固定资产减值准备 | C45: 贷 | D45: 0 | G45: 0
A46: a1604 | B46: 在建工程 | C46: 贷 | D46: 0 | G46: 0
A47: a1605 | B47: 工程物资 | C47: 借 | D47: 0 | G47: 0
A48: a160501 | B48: 工程物资--专用材料 | C48: 借 | D48: 0 | G48: 0
A49: a160502 | B49: 工程物资--专用设备 | C49: 借 | D49: 0 | G49: 0
A50: a160503 | B50: 工程物资--预付大型设备款 | C50: 借 | D50: 0 | G50: 0
A51: a160504 | B51: 工程物资--为生产准备的工具及器具 | C51: 借 | D51: 0 | G51: 0
A52: a1606 | B52: 固定资产清理 | C52: 借 | D52: 0 | G52: 0
A53: a1701 | B53: 无形资产 | C53: 借 | D53: 0 | G53: 0
A54: a1702 | B54: 累计摊销 | C54: 贷 | D54: 0 | G54: 0
A55: a1703 | B55: 无形资产减值准备 | C55: 贷 | D55: 0 | G55: 0
A56: a1711 | B56: 商誉 | C56: 借 | D56: 0 | G56: 0
A57: a1801 | B57: 长期待摊费用 | C57: 借 | D57: 0 | G57: 0
A58: a1811 | B58: 递延所得税资产 | C58: 借 | D58: 0 | G58: 0
A59: a1901 | B59: 待处理财产损益 | C59: 借 | D59: 0 | G59: 0
A60: a2001 | B60: 短期借款 | C60: 贷 | D60: 0 | G60: 0
A61: a2101 | B61: 交易性金融负债 | C61: 贷 | D61: 0 | G61: 0
A62: a210101 | B62: 交易性金融负债--本金 | C62: 贷 | D62: 0 | G62: 0
A63: a210102 | B63: 交易性金融负债--公允价值变动 | C63: 贷 | D63: 0 | G63: 0
A64: a2201 | B64: 应付票据 | C64: 贷 | D64: 0 | G64: 0
A65: a2202 | B65: 应付账款 | C65: 贷 | D65: 0 | G65: 0
A66: a2205 | B66: 预收账款 | C66: 贷 | D66: 0 | G66: 0
A67: a2211 | B67: 应付职工薪酬 | C67: 贷 | D67: 0 | E67: 8400 | F67: 8400 | G67: 0 | H67: 8400 | I67: 8400 | J67: 8400 | K67: 0 | L67: 8400 | M67: 0
A68: a221101 | B68: 应付职工薪酬--工资 | C68: 贷 | D68: 0 | E68: 8400 | F68: 8400 | G68: 0 | H68: 8400 | I68: 8400 | J68: 8400 | K68: 0 | L68: 8400 | M68: 0
A69: a221102 | B69: 应付职工薪酬--职工福利 | C69: 贷 | D69: 0 | G69: 0
A70: a221103 | B70: 应付职工薪酬--社会保险费 | C70: 贷 | D70: 0 | G70: 0
A71: a221104 | B71: 应付职工薪酬--住房公积金 | C71: 贷 | D71: 0 | G71: 0
A72: a221105 | B72: 应付职工薪酬--工会经费 | C72: 贷 | D72: 0 | G72: 0
A73: a221106 | B73: 应付职工薪酬--职工教育经费 | C73: 贷 | D73: 0 | G73: 0
A74: a221107 | B74: 应付职工薪酬--解除职工劳动关系补偿 | C74: 贷 | D74: 0 | G74: 0
A75: a2221 | B75: 应缴税费 | C75: 贷 | D75: 0 | G75: 0
A76: a222101 | B76: 应缴税费--应交增值税 | C76: 贷 | D76: 0 | G76: 0
A77: a22210101 | B77: 应缴税费--进项税额 | C77: 借 | D77: 0 | G77: 0
A78: a22210102 | B78: 应缴税费--已交税金 | C78: 借 | D78: 0 | G78: 0
A79: a22210103 | B79: 应缴税费--减免税款 | C79: 借 | D79: 0 | G79: 0
A80: a22210104 | B80: 应缴税费--出口抵减内销产品应纳税额 | C80: 借 | D80: 0 | G80: 0
A81: a22210105 | B81: 应缴税费--转出未交增值税 | C81: 借 | D81: 0 | G81: 0
A82: a22210106 | B82: 应缴税费--销项税额 | C82: 贷 | D82: 0 | G82: 0
A83: a22210107 | B83: 应缴税费--出口退税 | C83: 贷 | D83: 0 | G83: 0
A84: a22210108 | B84: 应缴税费--进项税额转出 | C84: 贷 | D84: 0 | G84: 0
A85: a22210109 | B85: 应缴税费--转出多交增值税 | C85: 贷 | D85: 0 | G85: 0
A86: a222102 | B86: 应缴税费--未交增值税 | C86: 贷 | D86: 0 | G86: 0
A87: a222103 | B87: 应缴税费--应交营业税 | C87: 贷 | D87: 0 | G87: 0
A88: a222104 | B88: 应缴税费--应交消费税 | C88: 贷 | D88: 0 | G88: 0
A89: a222105 | B89: 应缴税费--应交资源税 | C89: 贷 | D89: 0 | G89: 0
A90: a222106 | B90: 应缴税费--应交所得税 | C90: 贷 | D90: 0 | G90: 0
A91: a222107 | B91: 应缴税费--应交土地增值税 | C91: 贷 | D91: 0 | G91: 0
A92: a222108 | B92: 应缴税费--应交城市建设维护税 | C92: 贷 | D92: 0 | G92: 0
A93: a222109 | B93: 应缴税费--应交教育附加费 | C93: 贷 | D93: 0 | G93: 0
A94: a222110 | B94: 应缴税费--应交房产税 | C94: 贷 | D94: 0 | G94: 0
A95: a222111 | B95: 应缴税费--应交土地使用税 | C95: 贷 | D95: 0 | G95: 0
A96: a222112 | B96: 应缴税费--应交车船使用税 | C96: 贷 | D96: 0 | G96: 0
A97: a222113 | B97: 应缴税费--应交个人所得税 | C97: 贷 | D97: 0 | G97: 0
A98: a222114 | B98: 应缴税费--应交矿产资源补偿费 | C98: 贷 | D98: 0 | G98: 0
A99: a2231 | B99: 应付股利 | C99: 贷 | D99: 0 | G99: 0
A100: a2232 | B100: 应付利息 | C100: 贷 | D100: 0 | G100: 0
A101: a2241 | B101: 其他应付款 | C101: 贷 | D101: 0 | G101: 0
A102: a2314 | B102: 代理业务负债 | C102: 贷 | D102: 0 | G102: 0
A103: a2501 | B103: 递延收益 | C103: 贷 | D103: 0 | G103: 0
A104: a2601 | B104: 长期借款 | C104: 贷 | D104: 0 | G104: 0
A105: a260101 | B105: 长期借款--本金 | C105: 贷 | D105: 0 | G105: 0
A106: a260102 | B106: 长期借款--利息调整 | C106: 贷 | D106: 0 | G106: 0
A107: a2801 | B107: 长期应付款 | C107: 贷 | D107: 0 | G107: 0
A108: a2802 | B108: 未确认融资费用 | C108: 贷 | D108: 0 | G108: 0
A109: a2811 | B109: 专项应付款 | C109: 贷 | D109: 0 | G109: 0
A110: a2901 | B110: 递延所得税负债 | C110: 贷 | D110: 0 | G110: 0
A111: a3101 | B111: 衍生工具 | C111: 借 | D111: 0 | G111: 0
A112: a3201 | B112: 套期工具 | C112: 借 | D112: 0 | G112: 0
A113: a3202 | B113: 被套期项目 | C113: 借 | D113: 0 | G113: 0
A114: a4001 | B114: 实收资本 | C114: 贷 | D114: 100000 | G114: 100000
A115: a4002 | B115: 资本公积 | C115: 贷 | D115: 0 | G115: 0
A116: a400201 | B116: 资本公积--资本溢价 | C116: 贷 | D116: 0 | G116: 0
A117: a400202 | B117: 资本公积--股本溢价 | C117: 贷 | D117: 0 | G117: 0
A118: a400203 | B118: 资本公积--其他资本公积 | C118: 贷 | D118: 0 | G118: 0
A119: a4101 | B119: 盈余公积 | C119: 贷 | D119: 0 | G119: 0
A120: a410101 | B120: 盈余公积--法定盈余公积 | C120: 贷 | D120: 0 | G120: 0
A121: a410102 | B121: 盈余公积--任意盈余公积 | C121: 贷 | D121: 0 | G121: 0
A122: a410103 | B122: 盈余公积--法定公益金 | C122: 贷 | D122: 0 | G122: 0
A123: a410104 | B123: 盈余公积--储备基金 | C123: 贷 | D123: 0 | G123: 0
A124: a410105 | B124: 盈余公积--企业发展基金 | C124: 贷 | D124: 0 | G124: 0
A125: a410106 | B125: 盈余公积--利润归还投资 | C125: 贷 | D125: 0 | G125: 0
A126: a4103 | B126: 本年利润 | C126: 贷 | D126: 0 | E126: 1.818989404e-12 | F126: 0 | G126: 0 | H126: 1.818989404e-12 | I126: 0
A127: a4104 | B127: 利润分配 | C127: 贷 | D127: -12171.49 | E127: 0 | F127: -9194.64 | G127: -21366.13 | H127: 0 | I127: -9194.64
A128: a410401 | B128: 利润分配--提取法定盈余公积金 | C128: 借 | D128: 0 | G128: 0
A129: a410402 | B129: 利润分配--提取任意盈余公积 | C129: 借 | D129: 0 | G129: 0
A130: a410403 | B130: 利润分配--提取法定公益金 | C130: 借 | D130: 0 | G130: 0
A131: a410404 | B131: 利润分配--应付现金股利或利润 | C131: 借 | D131: 0 | G131: 0
A132: a410405 | B132: 利润分配--转作股本的利润 | C132: 借 | D132: 0 | G132: 0
A133: a410406 | B133: 利润分配--盈余公积补亏 | C133: 借 | D133: 0 | G133: 0
A134: a410407 | B134: 利润分配--提取储备基金 | C134: 借 | D134: 0 | G134: 0
A135: a410408 | B135: 利润分配--提取企业发展基金 | C135: 借 | D135: 0 | G135: 0
A136: a410409 | B136: 利润分配--提取职工奖励及福利基金 | C136: 借 | D136: 0 | G136: 0
A137: a410410 | B137: 利润分配--利润归还投资 | C137: 借 | D137: 0 | G137: 0
A138: a410411 | B138: 利润分配--未分配利润 | C138: 贷 | D138: -12171.49 | E138: 0 | F138: -9194.64 | G138: -21366.13 | H138: 0 | I138: -9194.64
A139: a4201 | B139: 库存股 | C139: 借 | D139: 0 | G139: 0
A140: a5001 | B140: 生产成本 | C140: 借 | D140: 0 | G140: 0
A141: a500101 | B141: 生产成本--基本生产成本 | C141: 借 | D141: 0 | G141: 0
A142: a500102 | B142: 生产成本--辅助生产成本 | C142: 借 | D142: 0 | G142: 0
A143: a5101 | B143: 制造费用 | C143: 借 | D143: 0 | G143: 0
A144: a5201 | B144: 劳务成本 | C144: 借 | D144: 0 | G144: 0
A145: a5301 | B145: 研发支出 | C145: 借 | D145: 0 | G145: 0
A146: a530101 | B146: 研发支出--费用化支出 | C146: 借 | D146: 0 | G146: 0
A147: a530102 | B147: 研发支出--资本化支出 | C147: 借 | D147: 0 | G147: 0
A148: a6001 | B148: 主营业务收入 | C148: 贷 | D148: 0 | G148: 0
A149: a6051 | B149: 其他业务收入 | C149: 贷 | D149: 0 | G149: 0
A150: a6101 | B150: 公允价值变动损益 | C150: 贷 | D150: 0 | G150: 0
A151: a6111 | B151: 投资收益 | C151: 贷 | D151: 0 | G151: 0
A152: a6301 | B152: 营业外收入 | C152: 贷 | D152: 0 | G152: 0
A153: a6401 | B153: 营业外成本 | C153: 借 | D153: 0 | G153: 0
A154: a6402 | B154: 其他业务成本 | C154: 借 | D154: 0 | G154: 0
A155: a6405 | B155: 营业税金及附加 | C155: 借 | D155: 0 | G155: 0
A156: a6601 | B156: 销售费用 | C156: 借 | D156: 0 | G156: 0
A157: a660101 | B157: 销售费用--办公用品 | C157: 借 | D157: 0 | G157: 0
A158: a660102 | B158: 销售费用--房租 | C158: 借 | D158: 0 | G158: 0
A159: a660103 | B159: 销售费用--物业管理费 | C159: 借 | D159: 0 | G159: 0
A160: a660104 | B160: 销售费用--水电费 | C160: 借 | D160: 0 | G160: 0
A161: a660105 | B161: 销售费用--交际应酬费 | C161: 借 | D161: 0 | G161: 0
A162: a660106 | B162: 销售费用--市内交通费 | C162: 借 | D162: 0 | G162: 0
A163: a660107 | B163: 销售费用--差旅费 | C163: 借 | D163: 0 | G163: 0
A164: a660108 | B164: 销售费用--补助 | C164: 借 | D164: 0 | G164: 0
A165: a660109 | B165: 销售费用--通讯费 | C165: 借 | D165: 0 | G165: 0
A166: a660110 | B166: 销售费用--工资 | C166: 借 | D166: 0 | G166: 0
A167: a660111 | B167: 销售费用--佣金 | C167: 借 | D167: 0 | G167: 0
A168: a660112 | B168: 销售费用--保险金 | C168: 借 | D168: 0 | G168: 0
A169: a660113 | B169: 销售费用--福利费 | C169: 借 | D169: 0 | G169: 0
A170: a660114 | B170: 销售费用--包装费 | C170: 借 | D170: 0 | G170: 0
A171: a660115 | B171: 销售费用--展览费费和广告费 | C171: 借 | D171: 0 | G171: 0
A172: a660116 | B172: 销售费用--商品维修费 | C172: 借 | D172: 0 | G172: 0
A173: a660117 | B173: 销售费用--预计产品质量保证损失 | C173: 借 | D173: 0 | G173: 0
A174: a660118 | B174: 销售费用--运输费 | C174: 借 | D174: 0 | G174: 0
A175: a660119 | B175: 销售费用--装卸费 | C175: 借 | D175: 0 | G175: 0
A176: a660120 | B176: 销售费用--折旧费 | C176: 借 | D176: 0 | G176: 0
A177: a660121 | B177: 销售费用--计提福利 | C177: 借 | D177: 0 | G177: 0
A178: a660122 | B178: 销售费用--计提职工教育经费 | C178: 借 | D178: 0 | G178: 0
A179: a660199 | B179: 销售费用--其他 | C179: 借 | D179: 0 | G179: 0
A180: a6602 | B180: 管理费用 | C180: 借 | D180: 0 | E180: 9195.1 | F180: 9195.1 | G180: 0 | H180: 9195.1 | I180: 9195.1 | J180: 795.1 | K180: 0 | L180: 795.1 | M180: 0
A181: a660201 | B181: 管理费用--办公用品 | C181: 借 | D181: 0 | E181: 249.1 | F181: 249.1 | G181: 0 | H181: 249.1 | I181: 249.1 | J181: 249.1 | K181: 0 | L181: 249.1 | M181: 0
A182: a660202 | B182: 管理费用--房租 | C182: 借 | D182: 0 | G182: 0
A183: a660203 | B183: 管理费用--物业管理费 | C183: 借 | D183: 0 | G183: 0
A184: a660204 | B184: 管理费用--水电费 | C184: 借 | D184: 0 | G184: 0
A185: a660205 | B185: 管理费用--交际应酬费 | C185: 借 | D185: 0 | G185: 0
A186: a660206 | B186: 管理费用--市内交通费 | C186: 借 | D186: 0 | G186: 0
A187: a660207 | B187: 管理费用--差旅费 | C187: 借 | D187: 0 | E187: 206 | F187: 206 | G187: 0 | H187: 206 | I187: 206 | J187: 206 | K187: 0 | L187: 206 | M187: 0
A188: a660208 | B188: 管理费用--通讯费 | C188: 借 | D188: 0 | E188: 340 | F188: 340 | G188: 0 | H188: 340 | I188: 340 | J188: 340 | K188: 0 | L188: 340 | M188: 0
A189: a660209 | B189: 管理费用--工资 | C189: 借 | D189: 0 | E189: 8400 | F189: 8400 | G189: 0 | H189: 8400 | I189: 8400
A190: a660210 | B190: 管理费用--保险金 | C190: 借 | D190: 0 | G190: 0
A191: a660211 | B191: 管理费用--福利费 | C191: 借 | D191: 0 | G191: 0
A192: a660212 | B192: 管理费用--工会经费 | C192: 借 | D192: 0 | G192: 0
A193: a660213 | B193: 管理费用--董事会费 | C193: 借 | D193: 0 | G193: 0
A194: a660214 | B194: 管理费用--聘请中介机构费 | C194: 借 | D194: 0 | G194: 0
A195: a660215 | B195: 管理费用--咨询费 | C195: 借 | D195: 0 | G195: 0
A196: a660216 | B196: 管理费用--诉讼费 | C196: 借 | D196: 0 | G196: 0
A197: a660217 | B197: 管理费用--房产税 | C197: 借 | D197: 0 | G197: 0
A198: a660218 | B198: 管理费用--车船使用税 | C198: 借 | D198: 0 | G198: 0
A199: a660219 | B199: 管理费用--土地使用税 | C199: 借 | D199: 0 | G199: 0
A200: a660220 | B200: 管理费用--印花税 | C200: 借 | D200: 0 | G200: 0
A201: a660221 | B201: 管理费用--技术转让费 | C201: 借 | D201: 0 | G201: 0
A202: a660222 | B202: 管理费用--矿产资源补偿费 | C202: 借 | D202: 0 | G202: 0
... 17 more rows

Sheet 凭证打
A2: 记账凭证
A3: = = = = = = = = = = = = = = = = = = = = = = = = = = =
A4: 2017-12-23
A5: 核算单位：晋江育盛木业有限公司 | D5: 凭证号：PZ171223001
A6: 摘 要 | B6: 会计科目 | C6: 借 方 金 额 | D6: 贷 方 金 额
A7: 报销交通费.差旅费，办公费 | B7: 管理费用--差旅费 | C7: 206
B8: 管理费用--通讯费 | C8: 340
B9: 管理费用--办公用品 | C9: 249.1
B10: 库存现金 | D10: 795.1
A12: 附单据数 张 | B12: 合计：柒佰玖拾伍元壹角整 | C12: ￥795.10 | D12: ￥795.10
A13: 记账： | B13: 张三 | C13: 复核： | D13: 李四
A17: 记账凭证
A18: = = = = = = = = = = = = = = = = = = = = = = = = = = =
A19: 2017-12-23
A20: 核算单位：晋江育盛木业有限公司 | D20: 凭证号：PZ171223002
A21: 摘 要 | B21: 会计科目 | C21: 借 方 金 额 | D21: 贷 方 金 额
A22: 计提10-12月工资 | B22: 管理费用--工资 | C22: 8400
B23: 应付职工薪酬--工资 | D23: 8400
A27: 附单据数 张 | B27: 合计：捌仟肆佰元整 | C27: ￥8,400.00 | D27: ￥8,400.00
A28: 记账： | B28: 张三 | C28: 复核： | D28: 李四
A32: 记账凭证
A33: = = = = = = = = = = = = = = = = = = = = = = = = = = =
A34: 2017-12-23
A35: 核算单位：晋江育盛木业有限公司 | D35: 凭证号：PZ171223003
A36: 摘 要 | B36: 会计科目 | C36: 借 方 金 额 | D36: 贷 方 金 额
A37: 发放10-12月工资 | B37: 应付职工薪酬--工资 | C37: 8400
B38: 库存现金 | D38: 8400
A42: 附单据数 张 | B42: 合计：捌仟肆佰元整 | C42: ￥8,400.00 | D42: ￥8,400.00
A43: 记账： | B43: 张三 | C43: 复核： | D43: 李四
A47: 记账凭证
A48: = = = = = = = = = = = = = = = = = = = = = = = = = = =
A49: 2017-12-23
A50: 核算单位：晋江育盛木业有限公司 | D50: 凭证号：PZ171223004
A51: 摘 要 | B51: 会计科目 | C51: 借 方 金 额 | D51: 贷 方 金 额
A52: 往来款 | B52: 库存现金 | C52: 50000
B53: 其他应收款 | D53: 50000
A57: 附单据数 张 | B57: 合计：伍万整 | C57: ￥50,000.00 | D57: ￥50,000.00
A58: 记账： | B58: 张三 | C58: 复核： | D58: 李四
A62: 记账凭证
A63: = = = = = = = = = = = = = = = = = = = = = = = = = = =
A64: 2017-12-23
A65: 核算单位：晋江育盛木业有限公司 | D65: 凭证号：PZ171223005
A66: 摘 要 | B66: 会计科目 | C66: 借 方 金 额 | D66: 贷 方 金 额
A67: 收第一季度利息 | B67: 银行存款 | C67: 0.46
B68: 财务费用--利息 | C68: -0.46
A72: 附单据数 张 | B72: 合计： | C72: ￥0.00 | D72: ￥0.00
A73: 记账： | B73: 张三 | C73: 复核： | D73: 李四
A77: 记账凭证
A78: = = = = = = = = = = = = = = = = = = = = = = = = = = =
A79: 2017-12-24
A80: 核算单位：晋江育盛木业有限公司 | D80: 凭证号：PZ171224006
A81: 摘 要 | B81: 会计科目 | C81: 借 方 金 额 | D81: 贷 方 金 额
A82: 月末结转 | B82: 管理费用--办公用品 | D82: 249.1
A83: 月末结转 | B83: 管理费用--差旅费 | D83: 206
A84: 月末结转 | B84: 管理费用--通讯费 | D84: 340
A85: 月末结转 | B85: 管理费用--工资 | D85: 8400
A86: 月末结转 | B86: 财务费用--利息 | D86: -0.46
A87: 附单据数 张 | C87: ￥0.00 | D87: ￥9,194.64
A88: 记账： | B88: 张三 | C88: 复核： | D88: 李四
A92: 记账凭证
A93: = = = = = = = = = = = = = = = = = = = = = = = = = = =
A94: 2017-12-24
A95: 核算单位：晋江育盛木业有限公司 | D95: 凭证号：PZ171224006
A96: 摘 要 | B96: 会计科目 | C96: 借 方 金 额 | D96: 贷 方 金 额
A97: 月末结转 | B97: 本年利润 | C97: 9194.64
A98: 月末结转 | B98: 本年利润 | C98: -9194.64
A99: 月末结转 | B99: 利润分配--未分配利润 | D99: -9194.64
A102: 附单据数 张 | C102: ￥0.00 | D102: ￥0.00
A103: 记账： | B103: 张三 | C103: 复核： | D103: 李四

Sheet 系统设置
A1: 系统设置
A2: 序号 | B2: 项目 | C2: 参数
A3: 2 | B3: 送货单打印格式抬头名称 | C3: 北京市XXX科技有限公司
A4: 3 | B4: 公司联系地址(打印格式) | C4: XX区CC街道XX巷XXC号
A5: 4 | B5: 公司联系电话(打印格式) | C5: 010-12388888
A6: 1 | B6: 凭证单号样式选择 (示例)→→ | C6: =C7&C10&TEXT(NOW(),C8)&C10&TEXT("1",C9) -> PZ171226001
A7: 2 | B7: 其中:凭证单单号字段一(自定义,如JH) | C7: PZ
A8: 3 | B8: 凭证单单号字段二(日期格式) | C8: YYMMDD
A9: 4 | B9: 凭证单号默认位数(样式) | C9: 000
A10: 5 | B10: 间隔符
A11: 6 | B11: 核算单位 | C11: 晋江育盛木业有限公司
A12: 7 | B12: 记账 | C12: 张三
A13: 8 | B13: 复核 | C13: 李四

Sheet 操作说明
A1: EXCEL财务系统--全套账__操作使用说明
B2: 操作简要说明
A3: 1、 | B3: 系统使用前需要设置内容----科目设置（无限级设置）、常用摘要设置、年初数据设置在科目设置表输入。
A5: 2、 | B5: 记账凭证录入,摘要,科目双击选择录入,借贷平衡后保存凭证,月末结转可通过月末结转凭证表辅助生成分录,再转到记账凭证保存
A7: 3、 | B7: 点击科目余额表，进入后点击查询，（资产负债表、利润表、现金流量表可自动更新）注意公式可自行定义
A9: 4、 | B9: 点击凭证打印，选择对应起止日期，即可生成凭证
A11: 5、 | B11: 点击明细账，点击查询按钮，选择科目，即可生成明细账
A13: 6、 | B13: 一年使用完毕即可点击结转下年，重新开始账务处理
A15: 7、 | B15: EXCEL财务系统--需要启用宏，插件下载地址：插件下载地址:https://pan.baidu.com/s/1dF7VJKP
AC29: 2658
AC30: 2658

Sheet 主画面
A1: EXCEL财务系统--全套账
AD33: 2657

Sheet 记账凭证
C1: 记 账 凭 证 | M1: 当前日期 | N1: 2017-12-25
M2: 当前单号 | N2: 7
C3: =TEXT(N1,"yyyy-m-d") -> 2017-12-25 | E3: 凭证号： | F3: 凭证号： | G3: =系统设置!$C$7&系统设置!$C$10&TEXT(N1,系统设置!$C$8)&系统设置!$C$10&TEXT(N2,系统设置!$C$9) -> PZ171225007 | M3: 默认行数 | N3: 10
A4: ="编制单位："& 系统设置!C11 -> 编制单位：晋江育盛木业有限公司
A5: 摘要 | B5: 代码 | C5: 会计科目 | D5: 数量 | E5: 借方金额 | F5: 数量 | G5: 贷方金额
A56: 附单据数 张 | D56: =SUM(D6:D55) -> 0 | E56: =SUM(E6:E55) -> 0 | F56: =SUM(F6:F55) -> 0 | G56: =SUM(G6:G55) -> 0
A57: 财务主管： 记账： 复核： 出纳： 制单： 经办人：

Sheet 月末结转凭证
C1: 结 转 凭 证 | M1: 当前日期 | N1: =记账凭证!N1 -> 2017-12-25
M2: 当前单号 | N2: =记账凭证!N2 -> 7
C3: =记账凭证!C3 -> 2017-12-25 | E3: 凭证号： | F3: 凭证号： | G3: =记账凭证!G3 -> PZ171225007 | M3: 默认行数 | N3: 22
A4: =记账凭证!A4 -> 编制单位：晋江育盛木业有限公司
A5: 摘要 | C5: 会计科目 | D5: 数量 | E5: 借方金额 | F5: 数量 | G5: 贷方金额
A6: 月末结转 | B6: a6001 | C6: 主营业务收入 | E6: =SUMIF(凭证数据库!$D:$D,$B6,凭证数据库!$I:$I)-SUMIF(凭证数据库!$D:$D,$B6,凭证数据库!$G:$G) -> 0
A7: 月末结转 | B7: a6051 | C7: 其他业务收入 | E7: =SUMIF(凭证数据库!$D:$D,$B7,凭证数据库!$I:$I)-SUMIF(凭证数据库!$D:$D,$B7,凭证数据库!$G:$G) -> 0
A8: 月末结转 | B8: a6301 | C8: 营业外收入 | E8: =SUMIF(凭证数据库!$D:$D,$B8,凭证数据库!$I:$I)-SUMIF(凭证数据库!$D:$D,$B8,凭证数据库!$G:$G) -> 0
A9: 月末结转 | B9: a4103 | C9: 本年利润 | G9: =E6+E7+E8 -> 0
A10: 月末结转 | B10: a660201 | C10: 管理费用--办公用品 | G10: =SUMIF(凭证数据库!$D:$D,$B10,凭证数据库!$G:$G)-SUMIF(凭证数据库!$D:$D,$B10,凭证数据库!$I:$I) -> 0
A11: 月末结转 | B11: a660207 | C11: 管理费用--差旅费 | G11: =SUMIF(凭证数据库!$D:$D,$B11,凭证数据库!$G:$G)-SUMIF(凭证数据库!$D:$D,$B11,凭证数据库!$I:$I) -> 0
A12: 月末结转 | B12: a660208 | C12: 管理费用--通讯费 | G12: =SUMIF(凭证数据库!$D:$D,$B12,凭证数据库!$G:$G)-SUMIF(凭证数据库!$D:$D,$B12,凭证数据库!$I:$I) -> 0
A13: 月末结转 | B13: a660209 | C13: 管理费用--工资 | G13: =SUMIF(凭证数据库!$D:$D,$B13,凭证数据库!$G:$G)-SUMIF(凭证数据库!$D:$D,$B13,凭证数据库!$I:$I) -> 0
A14: 月末结转 | B14: a660302 | C14: 财务费用--利息 | G14: =SUMIF(凭证数据库!$D:$D,$B14,凭证数据库!$G:$G)-SUMIF(凭证数据库!$D:$D,$B14,凭证数据库!$I:$I) -> 0
A15: 月末结转 | B15: a4103 | C15: 本年利润 | E15: =G10+G11+G12+G13+G14 -> 0
A16: 月末结转 | B16: a500101 | C16: 生产成本--基本生产成本 | G16: =SUMIF(凭证数据库!$D:$D,$B16,凭证数据库!$G:$G)-SUMIF(凭证数据库!$D:$D,$B16,凭证数据库!$I:$I) -> 0
A17: 月末结转 | B17: a6401 | C17: 营业外成本 | G17: =SUMIF(凭证数据库!$D:$D,$B17,凭证数据库!$G:$G)-SUMIF(凭证数据库!$D:$D,$B17,凭证数据库!$I:$I) -> 0
A18: 月末结转 | B18: a6402 | C18: 其他业务成本 | G18: =SUMIF(凭证数据库!$D:$D,$B18,凭证数据库!$G:$G)-SUMIF(凭证数据库!$D:$D,$B18,凭证数据库!$I:$I) -> 0
A19: 月末结转 | B19: a4103 | C19: 本年利润 | E19: =G16+G17+G18 -> 0
A20: 月末结转 | B20: a6405 | C20: 营业税金及附加 | G20: =SUMIF(凭证数据库!$D:$D,$B20,凭证数据库!$G:$G)-SUMIF(凭证数据库!$D:$D,$B20,凭证数据库!$I:$I) -> 0
A21: 月末结转 | B21: a4103 | C21: 本年利润 | E21: =G20 -> 0
A22: 月末结转 | B22: a140601 | C22: 库存商品--a商品 | G22: =SUMIF(凭证数据库!$D:$D,$B22,凭证数据库!$G:$G)-SUMIF(凭证数据库!$D:$D,$B22,凭证数据库!$I:$I) -> 0
A23: 月末结转 | B23: a4103 | C23: 本年利润 | E23: =G22 -> 0
A24: 月末结转 | B24: a4103 | C24: 本年利润 | E24: 0
A25: 月末结转 | B25: a410411 | C25: 利润分配--未分配利润 | G25: 0
A56: 附单据数 张 | D56: =SUM(D6:D55) -> 0 | E56: =SUM(E6:E55) -> 0 | F56: =SUM(F6:F55) -> 0 | G56: =SUM(G6:G55) -> 0
A57: 财务主管： 记账： 复核： 出纳： 制单： 经办人：

Sheet 凭证数据库
A1: 日期 | B1: 凭证号 | C1: 摘要 | D1: 科目号 | E1: 科目名 | F1: 借方数量 | G1: 借方金额 | H1: 贷方数量 | I1: 贷方金额 | J1: 内码 | K1: 现流标志 | L1: 现金流
A2: 2017-12-23 | B2: PZ171223001 | C2: 报销交通费.差旅费，办公费 | D2: a660207 | E2: 管理费用--差旅费 | G2: 206 | J2: CW201712a660207 | L2: Y
A3: 2017-12-23 | B3: PZ171223001 | D3: a660208 | E3: 管理费用--通讯费 | G3: 340 | J3: CW201712a660208 | L3: Y
A4: 2017-12-23 | B4: PZ171223001 | D4: a660201 | E4: 管理费用--办公用品 | G4: 249.1 | J4: CW201712a660201 | L4: Y
A5: 2017-12-23 | B5: PZ171223001 | D5: a1001 | E5: 库存现金 | I5: 795.1 | J5: CW201712a1001 | K5: Y
A6: 2017-12-23 | B6: PZ171223002 | C6: 计提10-12月工资 | D6: a660209 | E6: 管理费用--工资 | G6: 8400 | J6: CW201712a660209
A7: 2017-12-23 | B7: PZ171223002 | D7: a221101 | E7: 应付职工薪酬--工资 | I7: 8400 | J7: CW201712a221101
A8: 2017-12-23 | B8: PZ171223003 | C8: 发放10-12月工资 | D8: a221101 | E8: 应付职工薪酬--工资 | G8: 8400 | J8: CW201712a221101 | L8: Y
A9: 2017-12-23 | B9: PZ171223003 | D9: a1001 | E9: 库存现金 | I9: 8400 | J9: CW201712a1001 | K9: Y
A10: 2017-12-23 | B10: PZ171223004 | C10: 往来款 | D10: a1001 | E10: 库存现金 | G10: 50000 | J10: CW201712a1001 | K10: Y
A11: 2017-12-23 | B11: PZ171223004 | D11: a1231 | E11: 其他应收款 | I11: 50000 | J11: CW201712a1231 | L11: Y
A12: 2017-12-23 | B12: PZ171223005 | C12: 收第一季度利息 | D12: a1002 | E12: 银行存款 | G12: 0.46 | J12: CW201712a1002 | K12: Y
A13: 2017-12-23 | B13: PZ171223005 | D13: a660302 | E13: 财务费用--利息 | G13: -0.46 | J13: CW201712a660302 | L13: Y
A14: 2017-12-24 | B14: PZ171224006 | C14: 月末结转 | D14: a660201 | E14: 管理费用--办公用品 | I14: 249.1 | J14: CW201712a660201
A15: 2017-12-24 | B15: PZ171224006 | C15: 月末结转 | D15: a660207 | E15: 管理费用--差旅费 | I15: 206 | J15: CW201712a660207
A16: 2017-12-24 | B16: PZ171224006 | C16: 月末结转 | D16: a660208 | E16: 管理费用--通讯费 | I16: 340 | J16: CW201712a660208
A17: 2017-12-24 | B17: PZ171224006 | C17: 月末结转 | D17: a660209 | E17: 管理费用--工资 | I17: 8400 | J17: CW201712a660209
A18: 2017-12-24 | B18: PZ171224006 | C18: 月末结转 | D18: a660302 | E18: 财务费用--利息 | I18: -0.46 | J18: CW201712a660302
A19: 2017-12-24 | B19: PZ171224006 | C19: 月末结转 | D19: a4103 | E19: 本年利润 | G19: 9194.64 | J19: CW201712a4103
A20: 2017-12-24 | B20: PZ171224006 | C20: 月末结转 | D20: a4103 | E20: 本年利润 | G20: -9194.64 | J20: CW201712a4103
A21: 2017-12-24 | B21: PZ171224006 | C21: 月末结转 | D21: a410411 | E21: 利润分配--未分配利润 | I21: -9194.64 | J21: CW201712a410411

Sheet 资产负债表
A1: 资产负债表（适用执行小企业会计准则的企业）
H2: 会小企01表
A3: =记账凭证!A4 -> 编制单位：晋江育盛木业有限公司 | D3: 日期： | E3: 2017-12-31 | H3: 金额单位：元
A4: 资 产 | B4: 行次 | C4: 期末余额 | D4: 年初余额 | E4: 负债和所有者权益 | F4: 行次 | G4: 期末余额 | H4: 年初余额
A5: 流动资产： | E5: 流动负债：
A6: 货币资金 | B6: 1 | C6: =SUMIF(科目汇总表!A:A,"a1001",科目汇总表!G:G)+SUMIF(科目汇总表!A:A,"a1002",科目汇总表!G:G)+SUMIF(科目汇总表!A:A,"a1015",科目汇总表!G:G) -> 58633.87 | D6: =SUMIF(科目设置!A:A,"a1001",科目设置!I:I)+SUMIF(科目设置!A:A,"a1002",科目设置!I:I)+SUMIF(科目设置!A:A,"a1015",科目设置!I:I) -> 17828.51 | E6: 短期借款 | F6: 31
A7: 短期投资 | B7: 2 | C7: 0 | D7: 0 | E7: 应付票据 | F7: 32
A8: 应收票据 | B8: 3 | C8: =SUMIF(科目汇总表!A:A,"a1121",科目汇总表!G:G) -> 0 | D8: =SUMIF(科目设置!A:A,"a1121",科目设置!I:I) -> 0 | E8: 应付账款 | F8: 33 | G8: =SUMIF(科目汇总表!A:A,"a2202",科目汇总表!G:G) -> 0 | H8: =SUMIF(科目设置!A:A,"a2202",科目设置!J:J) -> 0
A9: 应收账款 | B9: 4 | C9: =SUMIF(科目汇总表!A:A,"a1122",科目汇总表!G:G) -> 0 | D9: =SUMIF(科目设置!A:A,"a1122",科目设置!I:I) -> 0 | E9: 预收账款 | F9: 34 | G9: =SUMIF(科目汇总表!A:A,"a2205",科目汇总表!G:G) -> 0 | H9: =SUMIF(科目设置!A:A,"a2205",科目设置!J:J) -> 0
A10: 预付账款 | B10: 5 | C10: =SUMIF(科目汇总表!A:A,"a1123",科目汇总表!G:G) -> 0 | D10: =SUMIF(科目设置!A:A,"a1123",科目设置!I:I) -> 0 | E10: 应付职工薪酬 | F10: 35 | G10: =SUMIF(科目汇总表!A:A,"a2211",科目汇总表!G:G) -> 0 | H10: =SUMIF(科目设置!A:A,"a2211",科目设置!J:J) -> 0
A11: 应收股利 | B11: 6 | C11: =SUMIF(科目汇总表!A:A,"a1131",科目汇总表!G:G) -> 0 | D11: =SUMIF(科目设置!A:A,"a1131",科目设置!I:I) -> 0 | E11: 应交税费 | F11: 36 | G11: =SUMIF(科目汇总表!A:A,"a2221",科目汇总表!G:G) -> 0 | H11: =SUMIF(科目设置!A:A,"a2221",科目设置!J:J) -> 0
A12: 应收利息 | B12: 7 | C12: =SUMIF(科目汇总表!A:A,"a1132",科目汇总表!G:G) -> 0 | D12: =SUMIF(科目设置!A:A,"a1132",科目设置!I:I) -> 0 | E12: 应付利息 | F12: 37 | G12: =SUMIF(科目汇总表!A:A,"a2232",科目汇总表!G:G) -> 0 | H12: =SUMIF(科目设置!A:A,"a2232",科目设置!J:J) -> 0
A13: 其他应收款 | B13: 8 | C13: =SUMIF(科目汇总表!A:A,"a1231",科目汇总表!G:G) -> 20000 | D13: =SUMIF(科目设置!A:A,"a1231",科目设置!I:I) -> 70000 | E13: 应付利润 | F13: 38
A14: 存货 | B14: 9 | C14: =SUM(C15:C18) -> 0 | D14: =SUM(D15:D18) -> 0 | E14: 其他应付款 | F14: 39 | G14: =SUMIF(科目汇总表!A:A,"a2241",科目汇总表!G:G) -> 0 | H14: =SUMIF(科目设置!A:A,"a2241",科目设置!J:J) -> 0
A15: 其中：原材料 | B15: 10 | C15: =SUMIF(科目汇总表!A:A,"a1403",科目汇总表!G:G) -> 0 | D15: =SUMIF(科目设置!A:A,"a1403",科目设置!I:I) -> 0 | E15: 其他流动负债 | F15: 40
A16: 在产品 | B16: 11 | C16: 0 | D16: 0 | E16: 流动负债合计 | F16: 41 | G16: =SUM(G6:G15) -> 0 | H16: =SUM(H6:H15) -> 0
A17: 库存商品 | B17: 12 | C17: =SUMIF(科目汇总表!A:A,"a1406",科目汇总表!G:G) -> 0 | D17: =SUMIF(科目设置!A:A,"a1406",科目设置!I:I) -> 0 | E17: 非流动负债：
A18: 周转材料 | B18: 13 | E18: 长期借款 | F18: 42 | G18: =SUMIF(科目汇总表!A:A,"a2601",科目汇总表!G:G) -> 0 | H18: =SUMIF(科目设置!A:A,"a2601",科目设置!J:J) -> 0
A19: 其他流动资产 | B19: 14 | E19: 长期应付款 | F19: 43 | G19: =SUMIF(科目汇总表!A:A,"a2801",科目汇总表!G:G) -> 0 | H19: =SUMIF(科目设置!A:A,"a2801",科目设置!J:J) -> 0
A20: 流动资产合计 | B20: 15 | C20: =SUM(C6:C14,C19) -> 78633.87 | D20: =SUM(D6:D14,D19) -> 87828.51 | E20: 递延收益 | F20: 44
A21: 非流动资产 ： | E21: 其他非流动负债 | F21: 45
A22: 长期债券投资 | B22: 16 | E22: 非流动负债合计 | F22: 46 | G22: =SUM(G18:G21) -> 0 | H22: =SUM(H18:H21) -> 0
A23: 长期股权投资 | B23: 17 | E23: 负债合计 | F23: 47 | G23: =SUM(G16,G22) -> 0 | H23: =SUM(H16,H22) -> 0
A24: 固定资产原价 | B24: 18 | C24: =SUMIF(科目汇总表!A:A,"a1601",科目汇总表!G:G) -> 0 | D24: =SUMIF(科目设置!A:A,"a1601",科目设置!I:I) -> 0
A25: 减：累计折旧 | B25: 19 | C25: =SUMIF(科目汇总表!A:A,"a1602",科目汇总表!G:G) -> 0 | D25: =SUMIF(科目设置!A:A,"a1602",科目设置!I:I) -> 0
A26: 固定资产账面价值 | B26: 20 | C26: =C24-C25 -> 0 | D26: =D24-D25 -> 0
A27: 在建工程 | B27: 21
A28: 工程物资 | B28: 22
A29: 固定资产清理 | B29: 23 | C29: =SUMIF(科目汇总表!A:A,"a1606",科目汇总表!G:G) -> 0 | D29: =SUMIF(科目设置!A:A,"a1606",科目设置!I:I) -> 0
A30: 生物性生物资产 | B30: 24 | E30: 所有者权益（或股东权益）：
A31: 无形资产 | B31: 25 | E31: 实收资本（或股本） | F31: 48 | G31: =SUMIF(科目汇总表!A:A,"a4001",科目汇总表!G:G) -> 100000 | H31: =SUMIF(科目设置!A:A,"a4001",科目设置!J:J) -> 100000
A32: 开发支出 | B32: 26 | E32: 资本公积 | F32: 49 | G32: =SUMIF(科目汇总表!A:A,"a4002",科目汇总表!G:G) -> 0 | H32: =SUMIF(科目设置!A:A,"a4002",科目设置!J:J) -> 0
A33: 长期待摊费用 | B33: 27 | E33: 盈余公积 | F33: 50 | G33: =SUMIF(科目汇总表!A:A,"a4101",科目汇总表!G:G) -> 0 | H33: =SUMIF(科目设置!A:A,"a4101",科目设置!J:J) -> 0
A34: 其他非流动资产 | B34: 28 | E34: 未分配利润 | F34: 51 | G34: =SUMIF(科目汇总表!A:A,"a410411",科目汇总表!G:G) -> -21366.13 | H34: =SUMIF(科目设置!A:A,"a410411",科目设置!J:J) -> -12171.49
A35: 非流动资产合计 | B35: 29 | C35: =SUM(C23:C23,C26:C34) -> 0 | D35: =SUM(D23:D23,D26:D34) -> 0 | E35: 所有者权益（或股东权益）合计 | F35: 52 | G35: =SUM(G31:G34) -> 78633.87 | H35: =SUM(H31:H34) -> 87828.51
A36: 资产合计 | B36: 30 | C36: =SUM(C35,C20) -> 78633.87 | D36: =SUM(D35,D20) -> 87828.51 | E36: 负债和所有者权益（或股东权益）总计 | F36: 53 | G36: =SUM(G23,G35) -> 78633.87 | H36: =SUM(H23,H35) -> 87828.51
A37: 单位负责人： 财会负责人： 复核： 制表：

Sheet 现金流量表
A1: 现金流量表_年报（适用执行小企业会计准则的企业）
A2: 日期： | B2: 2017-12-31 | D2: 会小企03表
A3: =记账凭证!A4 -> 编制单位：晋江育盛木业有限公司 | C3: 金额单位：人民币元
A4: 项 目 | B4: 行次 | C4: 本年累计金额 | D4: 本月金额
A5: 一、经营活动产生的现金流量： | C5: =C6+C7-C8-C9-C10-C11 -> 40805.36 | D5: =D6+D7-D8-D9-D10-D11 -> 40805.36
A6: 销售产成品、商品、提供劳务收到的现金 | B6: 1 | C6: =SUMIF(科目汇总表!A:A,"a6001",科目汇总表!K:K)+SUMIF(科目汇总表!A:A,"a1121",科目汇总表!J:J)-SUMIF(科目汇总表!A:A,"a1121",科目汇总表!K:K)+SUMIF(科目汇总表!A:A,"a1122",科目汇总表!J:J)-SUMIF(科目汇总表!A:A,"a1122",科目汇总表!K:K)+SUMIF(科目汇总表!A:A,"a1123",科目汇总表!J:J)-SUMIF(科目汇总表!A:A,"a1123",科目汇总表!K:K) -> 0 | D6: =SUMIF(科目汇总表!A:A,"a6001",科目汇总表!M:M)+SUMIF(科目汇总表!A:A,"a1121",科目汇总表!L:L)-SUMIF(科目汇总表!A:A,"a1121",科目汇总表!M:M)+SUMIF(科目汇总表!A:A,"a1122",科目汇总表!L:L)-SUMIF(科目汇总表!A:A,"a1122",科目汇总表!M:M)+SUMIF(科目汇总表!A:A,"a1123",科目汇总表!L:L)-SUMIF(科目汇总表!A:A,"a1123",科目汇总表!M:M) -> 0
A7: 收到其他与经营活动有关的现金 | B7: 2 | C7: =SUMIF(科目汇总表!A:A,"a1231",科目汇总表!K:K) -> 50000 | D7: =SUMIF(科目汇总表!A:A,"a1231",科目汇总表!M:M) -> 50000
A8: 购买原材料、商品、接受劳务支付的现金 | B8: 3 | C8: =SUMIF(科目汇总表!A:A,"a5001",科目汇总表!J:J)+SUMIF(科目汇总表!A:A,"a1406",科目汇总表!J:J)+SUMIF(科目汇总表!A:A,"a2201",科目汇总表!J:J)-SUMIF(科目汇总表!A:A,"a2201",科目汇总表!K:K)+SUMIF(科目汇总表!A:A,"a2202",科目汇总表!J:J)-SUMIF(科目汇总表!A:A,"a2202",科目汇总表!K:K)+SUMIF(科目汇总表!A:A,"a2205",科目汇总表!J:J)-SUMIF(科目汇总表!A:A,"a2205",科目汇总表!K:K) -> 0 | D8: =SUMIF(科目汇总表!A:A,"a5001",科目汇总表!L:L)+SUMIF(科目汇总表!A:A,"a1406",科目汇总表!L:L)+SUMIF(科目汇总表!A:A,"a2201",科目汇总表!L:L)-SUMIF(科目汇总表!A:A,"a2201",科目汇总表!M:M)+SUMIF(科目汇总表!A:A,"a2202",科目汇总表!L:L)-SUMIF(科目汇总表!A:A,"a2202",科目汇总表!M:M)+SUMIF(科目汇总表!A:A,"a2205",科目汇总表!L:L)-SUMIF(科目汇总表!A:A,"a2205",科目汇总表!M:M) -> 0
A9: 支付的职工薪酬 | B9: 4 | C9: =SUMIF(科目汇总表!A:A,"a2211",科目汇总表!J:J) -> 8400 | D9: =SUMIF(科目汇总表!A:A,"a2211",科目汇总表!L:L) -> 8400
A10: 支付的税费 | B10: 5 | C10: =SUMIF(科目汇总表!A:A,"a2221",科目汇总表!J:J) -> 0 | D10: =SUMIF(科目汇总表!A:A,"a2221",科目汇总表!L:L) -> 0
A11: 支付其他与经营活动有关的现金 | B11: 6 | C11: =SUMIF(科目汇总表!A:A,"a6601",科目汇总表!J:J)+SUMIF(科目汇总表!A:A,"a6602",科目汇总表!J:J)+SUMIF(科目汇总表!A:A,"a6603",科目汇总表!J:J) -> 794.64 | D11: =SUMIF(科目汇总表!A:A,"a6601",科目汇总表!L:L)+SUMIF(科目汇总表!A:A,"a6602",科目汇总表!L:L)+SUMIF(科目汇总表!A:A,"a6603",科目汇总表!L:L) -> 794.64
A12: 经营活动产生的现金流量净额 | B12: 7
A13: 二、投资活动产生的现金流量： | C13: =C18 -> 0 | D13: =D18 -> 0
A14: 收回短期投资、长期债券投资和长期股权投资收到的现金 | B14: 8
A15: 取得投资收益收到的现金 | B15: 9
A16: 处置固定资产、无形资产和其他非流动资产收回的现金净额 | B16: 10
A17: 短期投资、长期债券投资和长期股权投资支付的现金 | B17: 11
A18: 购建固定资产、无形资产和其他非流动资产支付的现金 | B18: 12 | C18: =SUMIF(科目汇总表!A:A,"a1601",科目汇总表!J:J) -> 0 | D18: =SUMIF(科目汇总表!A:A,"a1601",科目汇总表!L:L) -> 0
A19: 投资活动产生的现金流量净额 | B19: 13
A20: 三、筹资活动产生的现金流量：
A21: 取得借款收到的现金 | B21: 14
A22: 吸收投资者投资收到的现金 | B22: 15
A23: 偿还借款本金支付的现金 | B23: 16
A24: 偿还借款利息支付的现金 | B24: 17
A25: 分配利润支付的现金 | B25: 18
A26: 筹资活动产生的现金流量净额 | B26: 19
A27: 四、现金净增加额 | B27: 20 | C27: =C5-C13 -> 40805.36 | D27: =D5-D13 -> 40805.36
A28: 加：年初现金余额 | B28: 21 | C28: =SUMIF(科目设置!G:G,"是",科目设置!I:I) -> 17828.51 | D28: =SUMIF(科目汇总表!A:A,"a1001",科目汇总表!D:D)+SUMIF(科目汇总表!A:A,"a1002",科目汇总表!D:D) -> 17828.51
A29: 五、期末现金余额 | B29: 22 | C29: =C27+C28 -> 58633.87 | D29: =D27+D28 -> 58633.87
A30: 单位负责人： 财会负责人： 复核： 制表：

Sheet 利润表
A1: 利润表 （适用执行小企业会计准则的企业）
A2: 日期： | B2: 2017-12-31 | D2: 会小企02表
A3: =记账凭证!A4 -> 编制单位：晋江育盛木业有限公司 | D3: 单位：元
A4: 项 目 | B4: 行次 | C4: 本年累计金额 | D4: 本月金额
A5: 一、营业收入 | B5: 1 | C5: =SUMIF(科目汇总表!A:A,"a6001",科目汇总表!I:I) -> 0 | D5: =SUMIF(科目汇总表!A:A,"a6001",科目汇总表!F:F) -> 0
A6: 减：营业成本 | B6: 2 | C6: =SUMIF(科目汇总表!A:A,"a5001",科目汇总表!I:I) -> 0 | D6: =SUMIF(科目汇总表!A:A,"a5001",科目汇总表!F:F) -> 0
A7: 营业税金及附加 | B7: 3 | C7: =SUMIF(科目汇总表!A:A,"a6405",科目汇总表!H:H) -> 0 | D7: =SUMIF(科目汇总表!A:A,"a6405",科目汇总表!E:E) -> 0
A8: 其中：消费税 | B8: 4 | C8: =SUMIF(科目汇总表!A:A,"a222104",科目汇总表!I:I) -> 0 | D8: =SUMIF(科目汇总表!A:A,"a222104",科目汇总表!F:F) -> 0
A9: 营业税 | B9: 5 | C9: =SUMIF(科目汇总表!A:A,"a222103",科目汇总表!I:I) -> 0 | D9: =SUMIF(科目汇总表!A:A,"a222103",科目汇总表!F:F) -> 0
A10: 城市维护建设税 | B10: 6 | C10: =SUMIF(科目汇总表!A:A,"a222108",科目汇总表!I:I) -> 0 | D10: =SUMIF(科目汇总表!A:A,"a222108",科目汇总表!F:F) -> 0
A11: 资源税 | B11: 7 | C11: =SUMIF(科目汇总表!A:A,"a222105",科目汇总表!I:I) -> 0 | D11: =SUMIF(科目汇总表!A:A,"a222105",科目汇总表!F:F) -> 0
A12: 土地增值税 | B12: 8 | C12: =SUMIF(科目汇总表!A:A,"a222107",科目汇总表!I:I) -> 0 | D12: =SUMIF(科目汇总表!A:A,"a222107",科目汇总表!F:F) -> 0
A13: 城镇土地使用税、房产税、车船税、印花税 | B13: 9 | C13: =SUMIF(科目汇总表!A:A,"a222107",科目汇总表!I:I)+SUMIF(科目汇总表!A:A,"a222111",科目汇总表!I:I)+SUMIF(科目汇总表!A:A,"a222110",科目汇总表!I:I)+SUMIF(科目汇总表!A:A,"a222112",科目汇总表!I:I) -> 0 | D13: =SUMIF(科目汇总表!A:A,"a222107",科目汇总表!F:F)+SUMIF(科目汇总表!A:A,"a222111",科目汇总表!F:F)+SUMIF(科目汇总表!A:A,"a222110",科目汇总表!F:F)+SUMIF(科目汇总表!A:A,"a222112",科目汇总表!F:F) -> 0
A14: 教育费附加、矿产资源补偿费、排污费 | B14: 10 | C14: =SUMIF(科目汇总表!A:A,"a222109",科目汇总表!I:I) -> 0 | D14: =SUMIF(科目汇总表!A:A,"a222109",科目汇总表!F:F) -> 0
A15: 销售费用 | B15: 11 | C15: =SUMIF(科目汇总表!A:A,"a6601",科目汇总表!H:H) -> 0 | D15: =SUMIF(科目汇总表!A:A,"a6601",科目汇总表!E:E) -> 0
A16: 其中：商品维修费 | B16: 12 | C16: =SUMIF(科目汇总表!A:A,"a660116",科目汇总表!H:H) -> 0 | D16: =SUMIF(科目汇总表!A:A,"a660116",科目汇总表!E:E) -> 0
A17: 广告费和业务宣传费 | B17: 13 | C17: =SUMIF(科目汇总表!A:A,"a660115",科目汇总表!H:H) -> 0 | D17: =SUMIF(科目汇总表!A:A,"a660115",科目汇总表!E:E) -> 0
A18: 管理费用 | B18: 14 | C18: =SUMIF(科目汇总表!A:A,"a6602",科目汇总表!H:H) -> 9195.1 | D18: =SUMIF(科目汇总表!A:A,"a6602",科目汇总表!E:E) -> 9195.1
A19: 其中：开办费 | B19: 15
A20: 业务招待费 | B20: 16 | C20: =SUMIF(科目汇总表!A:A,"a660205",科目汇总表!H:H) -> 0 | D20: =SUMIF(科目汇总表!A:A,"a660205",科目汇总表!E:E) -> 0
A21: 研究费用 | B21: 17 | C21: =SUMIF(科目汇总表!A:A,"a660223",科目汇总表!H:H) -> 0 | D21: =SUMIF(科目汇总表!A:A,"a660223",科目汇总表!E:E) -> 0
A22: 财务费用 | B22: 18 | C22: =SUMIF(科目汇总表!A:A,"a6603",科目汇总表!H:H) -> -0.46 | D22: =SUMIF(科目汇总表!A:A,"a6603",科目汇总表!E:E) -> -0.46
A23: 其中：利息费用（收入以“-”号填列） | B23: 19 | C23: =SUMIF(科目汇总表!A:A,"a660302",科目汇总表!H:H) -> -0.46 | D23: =SUMIF(科目汇总表!A:A,"a660302",科目汇总表!E:E) -> -0.46
A24: 加：投资收益（损失以“-”号填列） | B24: 20 | C24: 0
A25: 二、营业利润（亏损以“-”号填列） | B25: 21 | C25: =C5-C6-C7-C15-C18-C22+C24 -> -9194.64 | D25: =D5-D6-D7-D15-D18-D22+D24 -> -9194.64
A26: 加：营业外收入 | B26: 22 | C26: =SUMIF(科目汇总表!A:A,"a6301",科目汇总表!I:I) -> 0 | D26: =SUMIF(科目汇总表!A:A,"a6301",科目汇总表!F:F) -> 0
A27: 其中：政府补助 | B27: 23 | C27: 0
A28: 减：营业外支出 | B28: 24 | C28: =SUMIF(科目汇总表!A:A,"a6401",科目汇总表!H:H) -> 0 | D28: =SUMIF(科目汇总表!A:A,"a6401",科目汇总表!E:E) -> 0
A29: 其中：坏账损失 | B29: 25
A30: 无法收回的长期债券投资损失 | B30: 26
A31: 无法收回的长期股权投资损失 | B31: 27
A32: 自然灾害等不可抗力因素造成的损失 | B32: 28
A33: 税收滞纳金 | B33: 29
A34: 三、利润总额（亏损总额以“-”号填列） | B34: 30 | C34: =C25+C26-C28 -> -9194.64 | D34: =D25+D26-D28 -> -9194.64
A35: 减：所得税费用 | B35: 31 | C35: =SUMIF(科目汇总表!A:A,"a6801",科目汇总表!H:H) -> 0 | D35: =SUMIF(科目汇总表!A:A,"a6801",科目汇总表!E:E) -> 0
A36: 四、净利润（净亏损以“-”号填列） | B36: 32 | C36: =C34-C35 -> -9194.64 | D36: =D34-D35 -> -9194.64
A37: 单位负责人： 财会负责人： 复核： 制表：

Sheet 科目设置
A1: 科目编码 | B1: 级次 | C1: 科目名称 | D1: 类别 | E1: 数量核算 | F1: 是否末级科目 | G1: 是否现金科目 | H1: 余额方向 | I1: 年初余额 （借方） | J1: 年初余额 （贷方） | K1: 年初余额 （数量借方） | L1: 年初余额 （数量贷方） | M1: 数量结余 | N1: 平均价格
A2: a1001 | B2: 1 | C2: 库存现金 | D2: 资产 | F2: 是 | G2: 是 | H2: 借 | I2: 17301
A3: a1002 | B3: 1 | C3: 银行存款 | D3: 资产 | F3: 是 | G3: 是 | H3: 借 | I3: 527.51
A4: a1015 | B4: 1 | C4: 其他货币资金 | D4: 资产 | G4: 是 | H4: 借
A5: a101501 | B5: 2 | C5: 其他货币资金--外埠存款 | D5: 资产 | F5: 是 | G5: 是 | H5: 借
A6: a101502 | B6: 2 | C6: 其他货币资金--银行本票存款 | D6: 资产 | F6: 是 | G6: 是 | H6: 借
A7: a101503 | B7: 2 | C7: 其他货币资金--银行汇票存款 | D7: 资产 | F7: 是 | G7: 是 | H7: 借
A8: a101504 | B8: 2 | C8: 其他货币资金--信用卡存款 | D8: 资产 | F8: 是 | G8: 是 | H8: 借
A9: a101505 | B9: 2 | C9: 其他货币资金--信用保证金存款 | D9: 资产 | F9: 是 | G9: 是 | H9: 借
A10: a101506 | B10: 2 | C10: 其他货币资金--存出投资款 | D10: 资产 | F10: 是 | G10: 是 | H10: 借
A11: a1101 | B11: 1 | C11: 交易性金融资产 | D11: 资产 | H11: 借
A12: a110101 | B12: 2 | C12: 交易性金融资产--本金 | D12: 资产 | F12: 是 | H12: 借
A13: a110102 | B13: 2 | C13: 交易性金融资产--公允价值变动 | D13: 资产 | F13: 是 | H13: 借
A14: a1121 | B14: 1 | C14: 应收票据 | D14: 资产 | F14: 是 | H14: 借
A15: a1122 | B15: 1 | C15: 应收账款 | D15: 资产 | H15: 借
A16: a112201 | B16: 2 | C16: 应收账款--xxx1 | D16: 资产 | F16: 是 | H16: 借
A17: a112202 | B17: 2 | C17: 应收账款--xxx2 | D17: 资产 | F17: 是 | H17: 借
A18: a112203 | B18: 2 | C18: 应收账款--xxx3 | D18: 资产 | F18: 是 | H18: 借
A19: a1123 | B19: 1 | C19: 预付账款 | D19: 资产 | F19: 是 | H19: 借
A20: a1131 | B20: 1 | C20: 应收股利 | D20: 资产 | F20: 是 | H20: 借
A21: a1132 | B21: 1 | C21: 应收利息 | D21: 资产 | F21: 是 | H21: 借
A22: a1231 | B22: 1 | C22: 其他应收款 | D22: 资产 | F22: 是 | H22: 借 | I22: 70000
A23: a1401 | B23: 1 | C23: 材料采购 | D23: 资产 | F23: 是 | H23: 借
A24: a1402 | B24: 1 | C24: 在途物资 | D24: 资产 | F24: 是 | H24: 借
A25: a1403 | B25: 1 | C25: 原材料 | D25: 资产 | F25: 是 | H25: 借
A26: a1404 | B26: 1 | C26: 材料成本差异 | D26: 资产 | F26: 是 | H26: 借
A27: a1406 | B27: 1 | C27: 库存商品 | D27: 资产 | H27: 借
A28: a140601 | B28: 2 | C28: 库存商品--a商品 | D28: 资产 | E28: 是 | F28: 是 | H28: 借 | M28: =K28+SUMIF(凭证数据库!D:D,A28,凭证数据库!F:F)-SUMIF(凭证数据库!D:D,A28,凭证数据库!H:H) -> 0 | N28: =(I28+SUMIF(凭证数据库!D:D,A28,凭证数据库!G:G)-SUMIF(凭证数据库!D:D,A28,凭证数据库!I:I))/M28 -> 
A29: a140602 | B29: 2 | C29: 库存商品--b商品 | D29: 资产 | E29: 是 | F29: 是 | H29: 借 | M29: =K29+SUMIF(凭证数据库!D:D,A29,凭证数据库!F:F)-SUMIF(凭证数据库!D:D,A29,凭证数据库!H:H) -> 0 | N29: =(I29+SUMIF(凭证数据库!D:D,A29,凭证数据库!G:G)-SUMIF(凭证数据库!D:D,A29,凭证数据库!I:I))/M29 -> 
A30: a140603 | B30: 2 | C30: 库存商品--c商品 | D30: 资产 | E30: 是 | F30: 是 | H30: 借 | M30: =K30+SUMIF(凭证数据库!D:D,A30,凭证数据库!F:F)-SUMIF(凭证数据库!D:D,A30,凭证数据库!H:H) -> 0 | N30: =(I30+SUMIF(凭证数据库!D:D,A30,凭证数据库!G:G)-SUMIF(凭证数据库!D:D,A30,凭证数据库!I:I))/M30 -> 
A31: a140604 | B31: 2 | C31: 库存商品--d商品 | D31: 资产 | E31: 是 | F31: 是 | H31: 借 | M31: =K31+SUMIF(凭证数据库!D:D,A31,凭证数据库!F:F)-SUMIF(凭证数据库!D:D,A31,凭证数据库!H:H) -> 0 | N31: =(I31+SUMIF(凭证数据库!D:D,A31,凭证数据库!G:G)-SUMIF(凭证数据库!D:D,A31,凭证数据库!I:I))/M31 -> 
A32: a140605 | B32: 2 | C32: 库存商品--e商品 | D32: 资产 | E32: 是 | F32: 是 | H32: 借 | M32: =K32+SUMIF(凭证数据库!D:D,A32,凭证数据库!F:F)-SUMIF(凭证数据库!D:D,A32,凭证数据库!H:H) -> 0 | N32: =(I32+SUMIF(凭证数据库!D:D,A32,凭证数据库!G:G)-SUMIF(凭证数据库!D:D,A32,凭证数据库!I:I))/M32 -> 
A33: a1410 | B33: 1 | C33: 商品进销差价 | D33: 资产 | F33: 是 | H33: 贷
A34: a1411 | B34: 1 | C34: 委托加工物资 | D34: 资产 | F34: 是 | H34: 借
A35: a1431 | B35: 1 | C35: 周转材料建造 | D35: 资产 | F35: 是 | H35: 借
A36: a1531 | B36: 1 | C36: 长期应收款 | D36: 资产 | F36: 是 | H36: 借
A37: a1541 | B37: 1 | C37: 未实现融资收益 | D37: 资产 | F37: 是 | H37: 借
A38: a1601 | B38: 1 | C38: 固定资产 | D38: 资产 | F38: 是 | H38: 借
A39: a1602 | B39: 1 | C39: 累计折旧 | D39: 资产 | F39: 是 | H39: 贷
A40: a1603 | B40: 1 | C40: 固定资产减值准备 | D40: 资产 | F40: 是 | H40: 贷
A41: a1604 | B41: 1 | C41: 在建工程 | D41: 资产 | H41: 贷
A42: a1605 | B42: 1 | C42: 工程物资 | D42: 资产 | H42: 借
A43: a160501 | B43: 2 | C43: 工程物资--专用材料 | D43: 资产 | F43: 是 | H43: 借
A44: a160502 | B44: 2 | C44: 工程物资--专用设备 | D44: 资产 | F44: 是 | H44: 借
A45: a160503 | B45: 2 | C45: 工程物资--预付大型设备款 | D45: 资产 | F45: 是 | H45: 借
A46: a160504 | B46: 2 | C46: 工程物资--为生产准备的工具及器具 | D46: 资产 | F46: 是 | H46: 借
A47: a1606 | B47: 1 | C47: 固定资产清理 | D47: 资产 | F47: 是 | H47: 借
A48: a1701 | B48: 1 | C48: 无形资产 | D48: 资产 | F48: 是 | H48: 借
A49: a1702 | B49: 1 | C49: 累计摊销 | D49: 资产 | F49: 是 | H49: 贷
A50: a1703 | B50: 1 | C50: 无形资产减值准备 | D50: 资产 | F50: 是 | H50: 贷
A51: a1711 | B51: 1 | C51: 商誉 | D51: 资产 | F51: 是 | H51: 借
A52: a1801 | B52: 1 | C52: 长期待摊费用 | D52: 资产 | F52: 是 | H52: 借
A53: a1811 | B53: 1 | C53: 递延所得税资产 | D53: 资产 | F53: 是 | H53: 借
A54: a1901 | B54: 1 | C54: 待处理财产损益 | D54: 资产 | F54: 是 | H54: 借
A55: a2001 | B55: 1 | C55: 短期借款 | D55: 负债 | F55: 是 | H55: 贷
A56: a2101 | B56: 1 | C56: 交易性金融负债 | D56: 负债 | H56: 贷
A57: a210101 | B57: 2 | C57: 交易性金融负债--本金 | D57: 负债 | F57: 是 | H57: 贷
A58: a210102 | B58: 2 | C58: 交易性金融负债--公允价值变动 | D58: 负债 | F58: 是 | H58: 贷
A59: a2201 | B59: 1 | C59: 应付票据 | D59: 负债 | F59: 是 | H59: 贷
A60: a2202 | B60: 1 | C60: 应付账款 | D60: 负债 | F60: 是 | H60: 贷
A61: a2205 | B61: 1 | C61: 预收账款 | D61: 负债 | F61: 是 | H61: 贷
A62: a2211 | B62: 1 | C62: 应付职工薪酬 | D62: 负债 | H62: 贷
A63: a221101 | B63: 2 | C63: 应付职工薪酬--工资 | D63: 负债 | F63: 是 | H63: 贷
A64: a221102 | B64: 2 | C64: 应付职工薪酬--职工福利 | D64: 负债 | F64: 是 | H64: 贷
A65: a221103 | B65: 2 | C65: 应付职工薪酬--社会保险费 | D65: 负债 | F65: 是 | H65: 贷
A66: a221104 | B66: 2 | C66: 应付职工薪酬--住房公积金 | D66: 负债 | F66: 是 | H66: 贷
A67: a221105 | B67: 2 | C67: 应付职工薪酬--工会经费 | D67: 负债 | F67: 是 | H67: 贷
A68: a221106 | B68: 2 | C68: 应付职工薪酬--职工教育经费 | D68: 负债 | F68: 是 | H68: 贷
A69: a221107 | B69: 2 | C69: 应付职工薪酬--解除职工劳动关系补偿 | D69: 负债 | F69: 是 | H69: 贷
A70: a2221 | B70: 1 | C70: 应缴税费 | D70: 负债 | H70: 贷
A71: a222101 | B71: 2 | C71: 应缴税费--应交增值税 | D71: 负债 | H71: 贷
A72: a22210101 | B72: 3 | C72: 应缴税费--进项税额 | D72: 负债 | F72: 是 | H72: 借
A73: a22210102 | B73: 3 | C73: 应缴税费--已交税金 | D73: 负债 | F73: 是 | H73: 借
A74: a22210103 | B74: 3 | C74: 应缴税费--减免税款 | D74: 负债 | F74: 是 | H74: 借
A75: a22210104 | B75: 3 | C75: 应缴税费--出口抵减内销产品应纳税额 | D75: 负债 | F75: 是 | H75: 借
A76: a22210105 | B76: 3 | C76: 应缴税费--转出未交增值税 | D76: 负债 | F76: 是 | H76: 借
A77: a22210106 | B77: 3 | C77: 应缴税费--销项税额 | D77: 负债 | F77: 是 | H77: 贷
A78: a22210107 | B78: 3 | C78: 应缴税费--出口退税 | D78: 负债 | F78: 是 | H78: 贷
A79: a22210108 | B79: 3 | C79: 应缴税费--进项税额转出 | D79: 负债 | F79: 是 | H79: 贷
A80: a22210109 | B80: 3 | C80: 应缴税费--转出多交增值税 | D80: 负债 | F80: 是 | H80: 贷
A81: a222102 | B81: 2 | C81: 应缴税费--未交增值税 | D81: 负债 | F81: 是 | H81: 贷
A82: a222103 | B82: 2 | C82: 应缴税费--应交营业税 | D82: 负债 | F82: 是 | H82: 贷
A83: a222104 | B83: 2 | C83: 应缴税费--应交消费税 | D83: 负债 | F83: 是 | H83: 贷
A84: a222105 | B84: 2 | C84: 应缴税费--应交资源税 | D84: 负债 | F84: 是 | H84: 贷
A85: a222106 | B85: 2 | C85: 应缴税费--应交所得税 | D85: 负债 | F85: 是 | H85: 贷
A86: a222107 | B86: 2 | C86: 应缴税费--应交土地增值税 | D86: 负债 | F86: 是 | H86: 贷
A87: a222108 | B87: 2 | C87: 应缴税费--应交城市建设维护税 | D87: 负债 | F87: 是 | H87: 贷
A88: a222109 | B88: 2 | C88: 应缴税费--应交教育附加费 | D88: 负债 | F88: 是 | H88: 贷
A89: a222110 | B89: 2 | C89: 应缴税费--应交房产税 | D89: 负债 | F89: 是 | H89: 贷
A90: a222111 | B90: 2 | C90: 应缴税费--应交土地使用税 | D90: 负债 | F90: 是 | H90: 贷
A91: a222112 | B91: 2 | C91: 应缴税费--应交车船使用税 | D91: 负债 | F91: 是 | H91: 贷
A92: a222113 | B92: 2 | C92: 应缴税费--应交个人所得税 | D92: 负债 | F92: 是 | H92: 贷
A93: a222114 | B93: 2 | C93: 应缴税费--应交矿产资源补偿费 | D93: 负债 | F93: 是 | H93: 贷
A94: a2231 | B94: 1 | C94: 应付股利 | D94: 负债 | F94: 是 | H94: 贷
A95: a2232 | B95: 1 | C95: 应付利息 | D95: 负债 | F95: 是 | H95: 贷
A96: a2241 | B96: 1 | C96: 其他应付款 | D96: 负债 | F96: 是 | H96: 贷
A97: a2314 | B97: 1 | C97: 代理业务负债 | D97: 负债 | F97: 是 | H97: 贷
A98: a2501 | B98: 1 | C98: 递延收益 | D98: 负债 | F98: 是 | H98: 贷
A99: a2601 | B99: 1 | C99: 长期借款 | D99: 负债 | H99: 贷
A100: a260101 | B100: 2 | C100: 长期借款--本金 | D100: 负债 | F100: 是 | H100: 贷
A101: a260102 | B101: 2 | C101: 长期借款--利息调整 | D101: 负债 | F101: 是 | H101: 贷
A102: a2801 | B102: 1 | C102: 长期应付款 | D102: 负债 | F102: 是 | H102: 贷
A103: a2802 | B103: 1 | C103: 未确认融资费用 | D103: 负债 | F103: 是 | H103: 贷
A104: a2811 | B104: 1 | C104: 专项应付款 | D104: 负债 | F104: 是 | H104: 贷
A105: a2901 | B105: 1 | C105: 递延所得税负债 | D105: 负债 | F105: 是 | H105: 贷
A106: a3101 | B106: 1 | C106: 衍生工具 | D106: 共同 | F106: 是 | H106: 借
A107: a3201 | B107: 1 | C107: 套期工具 | D107: 共同 | F107: 是 | H107: 借
A108: a3202 | B108: 1 | C108: 被套期项目 | D108: 共同 | F108: 是 | H108: 借
A109: a4001 | B109: 1 | C109: 实收资本 | D109: 权益 | F109: 是 | H109: 贷 | J109: 100000
A110: a4002 | B110: 1 | C110: 资本公积 | D110: 权益 | H110: 贷
A111: a400201 | B111: 2 | C111: 资本公积--资本溢价 | D111: 权益 | F111: 是 | H111: 贷
A112: a400202 | B112: 2 | C112: 资本公积--股本溢价 | D112: 权益 | F112: 是 | H112: 贷
A113: a400203 | B113: 2 | C113: 资本公积--其他资本公积 | D113: 权益 | F113: 是 | H113: 贷
A114: a4101 | B114: 1 | C114: 盈余公积 | D114: 权益 | H114: 贷
A115: a410101 | B115: 2 | C115: 盈余公积--法定盈余公积 | D115: 权益 | F115: 是 | H115: 贷
A116: a410102 | B116: 2 | C116: 盈余公积--任意盈余公积 | D116: 权益 | F116: 是 | H116: 贷
A117: a410103 | B117: 2 | C117: 盈余公积--法定公益金 | D117: 权益 | F117: 是 | H117: 贷
A118: a410104 | B118: 2 | C118: 盈余公积--储备基金 | D118: 权益 | F118: 是 | H118: 贷
A119: a410105 | B119: 2 | C119: 盈余公积--企业发展基金 | D119: 权益 | F119: 是 | H119: 贷
A120: a410106 | B120: 2 | C120: 盈余公积--利润归还投资 | D120: 权益 | F120: 是 | H120: 贷
A121: a4103 | B121: 1 | C121: 本年利润 | D121: 权益 | F121: 是 | H121: 贷
A122: a4104 | B122: 1 | C122: 利润分配 | D122: 权益 | H122: 贷
A123: a410401 | B123: 2 | C123: 利润分配--提取法定盈余公积金 | D123: 权益 | F123: 是 | H123: 借
A124: a410402 | B124: 2 | C124: 利润分配--提取任意盈余公积 | D124: 权益 | F124: 是 | H124: 借
A125: a410403 | B125: 2 | C125: 利润分配--提取法定公益金 | D125: 权益 | F125: 是 | H125: 借
A126: a410404 | B126: 2 | C126: 利润分配--应付现金股利或利润 | D126: 权益 | F126: 是 | H126: 借
A127: a410405 | B127: 2 | C127: 利润分配--转作股本的利润 | D127: 权益 | F127: 是 | H127: 借
A128: a410406 | B128: 2 | C128: 利润分配--盈余公积补亏 | D128: 权益 | F128: 是 | H128: 借
A129: a410407 | B129: 2 | C129: 利润分配--提取储备基金 | D129: 权益 | F129: 是 | H129: 借
A130: a410408 | B130: 2 | C130: 利润分配--提取企业发展基金 | D130: 权益 | F130: 是 | H130: 借
A131: a410409 | B131: 2 | C131: 利润分配--提取职工奖励及福利基金 | D131: 权益 | F131: 是 | H131: 借
A132: a410410 | B132: 2 | C132: 利润分配--利润归还投资 | D132: 权益 | F132: 是 | H132: 借
A133: a410411 | B133: 2 | C133: 利润分配--未分配利润 | D133: 权益 | F133: 是 | H133: 贷 | J133: -12171.49
A134: a4201 | B134: 1 | C134: 库存股 | D134: 权益 | F134: 是 | H134: 借
A135: a5001 | B135: 1 | C135: 生产成本 | D135: 成本 | H135: 借
A136: a500101 | B136: 2 | C136: 生产成本--基本生产成本 | D136: 成本 | F136: 是 | H136: 借
A137: a500102 | B137: 2 | C137: 生产成本--辅助生产成本 | D137: 成本 | F137: 是 | H137: 借
A138: a5101 | B138: 1 | C138: 制造费用 | D138: 成本 | F138: 是 | H138: 借
A139: a5201 | B139: 1 | C139: 劳务成本 | D139: 成本 | F139: 是 | H139: 借
A140: a5301 | B140: 1 | C140: 研发支出 | D140: 成本 | H140: 借
A141: a530101 | B141: 2 | C141: 研发支出--费用化支出 | D141: 成本 | F141: 是 | H141: 借
A142: a530102 | B142: 2 | C142: 研发支出--资本化支出 | D142: 成本 | F142: 是 | H142: 借
A143: a6001 | B143: 1 | C143: 主营业务收入 | D143: 损益 | F143: 是 | H143: 贷
A144: a6051 | B144: 1 | C144: 其他业务收入 | D144: 损益 | F144: 是 | H144: 贷
A145: a6101 | B145: 1 | C145: 公允价值变动损益 | D145: 损益 | F145: 是 | H145: 贷
A146: a6111 | B146: 1 | C146: 投资收益 | D146: 损益 | F146: 是 | H146: 贷
A147: a6301 | B147: 1 | C147: 营业外收入 | D147: 损益 | F147: 是 | H147: 贷
A148: a6401 | B148: 1 | C148: 营业外成本 | D148: 损益 | F148: 是 | H148: 借
A149: a6402 | B149: 1 | C149: 其他业务成本 | D149: 损益 | F149: 是 | H149: 借
A150: a6405 | B150: 1 | C150: 营业税金及附加 | D150: 损益 | F150: 是 | H150: 借
A151: a6601 | B151: 1 | C151: 销售费用 | D151: 损益 | H151: 借
A152: a660101 | B152: 2 | C152: 销售费用--办公用品 | D152: 损益 | F152: 是 | H152: 借
A153: a660102 | B153: 2 | C153: 销售费用--房租 | D153: 损益 | F153: 是 | H153: 借
A154: a660103 | B154: 2 | C154: 销售费用--物业管理费 | D154: 损益 | F154: 是 | H154: 借
A155: a660104 | B155: 2 | C155: 销售费用--水电费 | D155: 损益 | F155: 是 | H155: 借
A156: a660105 | B156: 2 | C156: 销售费用--交际应酬费 | D156: 损益 | F156: 是 | H156: 借
A157: a660106 | B157: 2 | C157: 销售费用--市内交通费 | D157: 损益 | F157: 是 | H157: 借
A158: a660107 | B158: 2 | C158: 销售费用--差旅费 | D158: 损益 | F158: 是 | H158: 借
A159: a660108 | B159: 2 | C159: 销售费用--补助 | D159: 损益 | F159: 是 | H159: 借
A160: a660109 | B160: 2 | C160: 销售费用--通讯费 | D160: 损益 | F160: 是 | H160: 借
A161: a660110 | B161: 2 | C161: 销售费用--工资 | D161: 损益 | F161: 是 | H161: 借
A162: a660111 | B162: 2 | C162: 销售费用--佣金 | D162: 损益 | F162: 是 | H162: 借
A163: a660112 | B163: 2 | C163: 销售费用--保险金 | D163: 损益 | F163: 是 | H163: 借
A164: a660113 | B164: 2 | C164: 销售费用--福利费 | D164: 损益 | F164: 是 | H164: 借
A165: a660114 | B165: 2 | C165: 销售费用--包装费 | D165: 损益 | F165: 是 | H165: 借
A166: a660115 | B166: 2 | C166: 销售费用--展览费费和广告费 | D166: 损益 | F166: 是 | H166: 借
A167: a660116 | B167: 2 | C167: 销售费用--商品维修费 | D167: 损益 | F167: 是 | H167: 借
A168: a660117 | B168: 2 | C168: 销售费用--预计产品质量保证损失 | D168: 损益 | F168: 是 | H168: 借
A169: a660118 | B169: 2 | C169: 销售费用--运输费 | D169: 损益 | F169: 是 | H169: 借
A170: a660119 | B170: 2 | C170: 销售费用--装卸费 | D170: 损益 | F170: 是 | H170: 借
A171: a660120 | B171: 2 | C171: 销售费用--折旧费 | D171: 损益 | F171: 是 | H171: 借
A172: a660121 | B172: 2 | C172: 销售费用--计提福利 | D172: 损益 | F172: 是 | H172: 借
A173: a660122 | B173: 2 | C173: 销售费用--计提职工教育经费 | D173: 损益 | F173: 是 | H173: 借
A174: a660199 | B174: 2 | C174: 销售费用--其他 | D174: 损益 | F174: 是 | H174: 借
A175: a6602 | B175: 1 | C175: 管理费用 | D175: 损益 | H175: 借
A176: a660201 | B176: 2 | C176: 管理费用--办公用品 | D176: 损益 | F176: 是 | H176: 借
A177: a660202 | B177: 2 | C177: 管理费用--房租 | D177: 损益 | F177: 是 | H177: 借
A178: a660203 | B178: 2 | C178: 管理费用--物业管理费 | D178: 损益 | F178: 是 | H178: 借
A179: a660204 | B179: 2 | C179: 管理费用--水电费 | D179: 损益 | F179: 是 | H179: 借
A180: a660205 | B180: 2 | C180: 管理费用--交际应酬费 | D180: 损益 | F180: 是 | H180: 借
A181: a660206 | B181: 2 | C181: 管理费用--市内交通费 | D181: 损益 | F181: 是 | H181: 借
A182: a660207 | B182: 2 | C182: 管理费用--差旅费 | D182: 损益 | F182: 是 | H182: 借
A183: a660208 | B183: 2 | C183: 管理费用--通讯费 | D183: 损益 | F183: 是 | H183: 借
A184: a660209 | B184: 2 | C184: 管理费用--工资 | D184: 损益 | F184: 是 | H184: 借
A185: a660210 | B185: 2 | C185: 管理费用--保险金 | D185: 损益 | F185: 是 | H185: 借
A186: a660211 | B186: 2 | C186: 管理费用--福利费 | D186: 损益 | F186: 是 | H186: 借
A187: a660212 | B187: 2 | C187: 管理费用--工会经费 | D187: 损益 | F187: 是 | H187: 借
A188: a660213 | B188: 2 | C188: 管理费用--董事会费 | D188: 损益 | F188: 是 | H188: 借
A189: a660214 | B189: 2 | C189: 管理费用--聘请中介机构费 | D189: 损益 | F189: 是 | H189: 借
A190: a660215 | B190: 2 | C190: 管理费用--咨询费 | D190: 损益 | F190: 是 | H190: 借
A191: a660216 | B191: 2 | C191: 管理费用--诉讼费 | D191: 损益 | F191: 是 | H191: 借
A192: a660217 | B192: 2 | C192: 管理费用--房产税 | D192: 损益 | F192: 是 | H192: 借
A193: a660218 | B193: 2 | C193: 管理费用--车船使用税 | D193: 损益 | F193: 是 | H193: 借
A194: a660219 | B194: 2 | C194: 管理费用--土地使用税 | D194: 损益 | F194: 是 | H194: 借
A195: a660220 | B195: 2 | C195: 管理费用--印花税 | D195: 损益 | F195: 是 | H195: 借
A196: a660221 | B196: 2 | C196: 管理费用--技术转让费 | D196: 损益 | F196: 是 | H196: 借
A197: a660222 | B197: 2 | C197: 管理费用--矿产资源补偿费 | D197: 损益 | F197: 是 | H197: 借
A198: a660223 | B198: 2 | C198: 管理费用--研究费用 | D198: 损益 | F198: 是 | H198: 借
A199: a660224 | B199: 2 | C199: 管理费用--排污费 | D199: 损益 | F199: 是 | H199: 借
A200: a660225 | B200: 2 | C200: 管理费用--折旧费 | D200: 损益 | F200: 是 | H200: 借
... 14 more rows

Sheet 摘要设置
A1: 编号 | B1: 常用摘要
A2: 1001 | B2: 存现
A3: 1002 | B3: 低值易耗品摊销
A4: 1003 | B4: 发放1月份工资
A5: 1004 | B5: 购买低值易耗品
A6: 1005 | B6: 购买印花税票/上缴车船使用税/上缴房产税/上缴土地增值税/调整税金误差
A7: 1006 | B7: 购入固定资产（电脑）20、销售货物
A8: 1007 | B8: 计提第一季度企业所得税
A9: 2001 | B9: 结转1月份增值税
A10: 2002 | B10: 结转销售成本
A11: 2003 | B11: 结转制造费用
A12: 3001 | B12: 进货
A13: 3002 | B13: 领用原材料
A14: 3003 | B14: 企业发生运输费、搬运费、停车费、过路过桥费、加油费、汽修费、车辆保险费（公司用车）邮寄、邮递、快递费
A15: 3004 | B15: 企业招待客户发生的餐费、住宿费、礼品
A16: 3005 | B16: 上缴第一季度企业所得税
A17: 3006 | B17: 上缴滞纳金或罚款
A18: 3007 | B18: 收到固定资产投资
A19: 3008 | B19: 收到投资款
A20: 3009 | B20: 收到银行利息
A21: 3010 | B21: 收到原材料或库存商品投资
A22: 3011 | B22: 摊销开办费
A23: 3012 | B23: 提现
A24: 3013 | B24: 完工产品入库
A25: 3014 | B25: 网络费
A26: 3015 | B26: 销售（公司简称）
A27: 3016 | B27: 支付1月份社保费
A28: 3017 | B28: 支付1月份租赁费或支付9.15至10.15租赁费
A29: 3018 | B29: 支付办公地点水电费、空调费及物业管理费
A30: 3019 | B30: 支付办公费
A31: 3020 | B31: 支付差旅费
A32: 3021 | B32: 支付福利费
A33: 3022 | B33: 支付银行费用
A34: 3023 | B34: 月末结转
